Cogmind - Beta 14 @@@ ROGUE MODE // 2024.10.07 @ 23:01:50 Player: Cereal Killer Result: Core destroyed Performance ------------- Evolutions (4) 2000 Regions Visited (20) 4000 Robots Destroyed (230) 1150 Value Destroyed (12652) 12652 Prototype IDs (230) 4600 Alien Tech Used (1) 200 Bonus (9676) 9676 TOTAL SCORE: 34278 Bonus ------- High Alert Combat Kills 3064 Follower Combat Kills 1389 Entered Garrisons 600 Met Data Miner 300 Used Data Conduit 3000 Met Imprinter 300 Destroyed Z-Imprinter 1000 Acquired ECA 300 Friendly Fire -277 Cogmind --------- Core Integrity 0/850 Matter 265/300 Energy 654/700 System Corruption 2% Temperature Cool (0) Movement Core (50) Location -5/Proximity Caves Parts ------- > --- POWER (1) -------- (None) > --- PROPULSION (3) --- (None) > --- UTILITY (8) ------ Improved Coolant Injector Zionite Biocell Advanced Signal Interpreter Advanced Targeting Computer System Mapper > --- WEAPON (3) ------- (None) > --- INVENTORY (5) ---- Zionite Biocell (600) Encrypted Comm Array Peak State ------------ > --- POWER ------------ Zionite Light DM Reactor > --- PROPULSION ------- Cooled Aerolev Unit Zionite Glidesys I Zionite Glidesys II > --- UTILITY ---------- Large Storage Unit Advanced Sensor Array Advanced Signal Interpreter Core Analyzer Improved Thermal Shield Improved Hacking Suite System Mapper Quantum Router > --- WEAPON ----------- Makeshift Sword > --- INVENTORY -------- Armored Wheel Makeshift Hover Unit Experimental Heat Sink Improved Coolant Injector Zionite Biocell Zionite Biocell Encrypted Comm Array Deep Network Scanner Ghost Barrier Dimensional Node Initializer Variable Charge Gun Heavy Plasma Cannon Heavy Machine Gun Improved Plasma Cutter [Rating: 86] Favorites ----------- Power Cooled Ion Engine Engine Cooled Ion Engine Power Core Neutrino Core Reactor Zionite Light DM Reactor Propulsion Armored Wheel Leg Zionite Composite Leg I Wheel Armored Wheel Hover Unit Cooled Aerolev Unit Utility Large Storage Unit Device Improved Thermal Shield Storage Large Storage Unit Processor Core Analyzer Hackware Makeshift Hacking Suite Protection Medium Reactive Plating Weapon Heavy Plasma Cannon Energy Gun Tesla Rifle Energy Cannon Heavy Plasma Cannon Ballistic Gun Flak Gun Ballistic Cannon Enhanced Gauss Cannon Launcher Improved Proton Missile Launcher Special Weapon Improved Plasma Cutter Slashing Weapon Makeshift Sword Build | -11 -10 -9 -9 -8 -8 -8 -8 -8 -8 -7 -7 -7 -7 -7 -6 -6 -6 -6 -6 -5 ------- Run | Yrd Mat Mat Min Mat Gar Mat Gar Mat Gar Fac Low Low Zio Dee Pro Fac Low Low Dat Pro Slots Evolved 8 | . . 2 . 2 . . . . . 2 . . . . . 2 . . . . Power . | . . . . . . . . . . . . . . . . . . . . . Propulsion 1 | . . . . . . . . . . . . . . . . 1 . . . . Utility 6 | . . 2 . 1 . . . . . 2 . . . . . 1 . . . . Weapon 1 | . . . . 1 . . . . . . . . . . . . . . . . Parts Attached 199 | 6 4 16 1 13 8 4 11 . 19 10 4 . 5 33 12 26 3 10 9 5 Power 18 | 1 2 3 . . 2 . 1 . . 1 . . . 4 1 1 . 2 . . Engine 12 | 1 1 3 . . 1 . 1 . . 1 . . . 2 1 1 . . . . Core 3 | . 1 . . . 1 . . . . . . . . . . . . 1 . . Reactor 3 | . . . . . . . . . . . . . . 2 . . . 1 . . Propulsion 36 | 2 . 3 . 1 1 . . . 4 2 . . . 11 2 4 . 2 4 . Treads . | . . . . . . . . . . . . . . . . . . . . . Leg 5 | . . . . . . . . . 2 . . . . 3 . . . . . . Wheel 19 | 2 . 3 . 1 1 . . . 1 2 . . . 5 2 . . . 2 . Hover 12 | . . . . . . . . . 1 . . . . 3 . 4 . 2 2 . Flight . | . . . . . . . . . . . . . . . . . . . . . Utility 92 | 1 2 6 1 6 3 2 6 . 4 5 4 . 2 13 6 17 3 3 5 3 Device 37 | . 1 2 . 3 1 1 3 . 2 . . . 2 5 . 12 2 1 1 1 Storage 9 | 1 1 . . 1 . 1 . . . . . . . 2 1 . . 1 . 1 Processor 6 | . . 1 . 1 . . . . . 1 . . . . 1 1 . . . 1 Hackware 7 | . . . . . . . . . . . . . . . 1 2 . . 4 . Protection 33 | . . 3 1 1 2 . 3 . 2 4 4 . . 6 3 2 1 1 . . Artifact . | . . . . . . . . . . . . . . . . . . . . . Weapon 53 | 2 . 4 . 6 2 2 4 . 11 2 . . 3 5 3 4 . 3 . 2 Energy Gun 11 | . . . . 2 . 2 1 . 2 . . . . 2 . 2 . . . . Energy Cannon 21 | . . 4 . 4 2 . 1 . 1 1 . . 2 2 1 1 . 1 . 1 Ballistic Gun 9 | 2 . . . . . . 1 . 6 . . . . . . . . . . . Ballistic Cannon 3 | . . . . . . . . . . . . . . 1 1 . . . . 1 Launcher 7 | . . . . . . . 1 . 2 1 . . . . 1 1 . 1 . . Special Weapon 1 | . . . . . . . . . . . . . 1 . . . . . . . Impact Weapon . | . . . . . . . . . . . . . . . . . . . . . Slashing Weapon 1 | . . . . . . . . . . . . . . . . . . 1 . . Piercing Weapon . | . . . . . . . . . . . . . . . . . . . . . Special Melee Weapon . | . . . . . . . . . . . . . . . . . . . . . Unidentified Prototypes 26 | . 1 2 . 2 . 1 . . . . . . . 11 . 4 . . 4 1 Parts Lost 51 | . . 2 . 1 3 . 6 . 6 1 . . . 5 5 . . 5 14 3 Power 7 | . . . . . . . 1 . . . . . . 2 1 . . 2 1 . Propulsion 12 | . . . . . 1 . . . 2 . . . . 2 . . . 1 6 . Utility 20 | . . . . . 2 . 3 . 2 1 . . . 1 3 . . 1 6 1 Weapon 12 | . . 2 . 1 . . 2 . 2 . . . . . 1 . . 1 1 2 Highest Loss Streak 14 | . . 1 . 1 3 . 5 . 3 1 . . . 3 2 . . 4 14 3 To Critical Strikes . | . . . . . . . . . . . . . . . . . . . . . Average Slot Usage (%) 94 | . 90 95 100 91 88 80 89 90 98 93 99 100 100 97 99 98 100 93 89 23 Engine 5 | . 10 10 11 9 7 . 8 9 9 7 7 7 7 1 2 5 6 2 . . Reactor 1 | . . . . . . . . . . . . . . 5 4 . . 3 5 . Leg 3 | . . . . . . . . . 14 8 . . . 4 6 . . . . . Wheel 9 | . 28 21 22 11 8 9 9 9 1 6 15 15 15 8 7 13 13 6 . . Hover 1 | . . . . . . . . . . . . . . . . 4 6 7 16 . Device 19 | . 5 16 11 18 18 18 17 18 25 23 23 23 23 30 19 14 6 6 6 . Storage 8 | . 14 11 11 9 9 9 9 9 9 7 7 7 7 8 13 8 6 6 10 . Processor 4 | . . 3 11 9 7 . . . . . 7 7 7 . 5 6 13 13 12 7 Hackware 3 | . . . . . . . . . . . . . . . 1 15 20 20 21 13 Protection 11 | . . 10 11 8 8 9 17 18 10 16 14 15 15 13 10 5 6 4 . . Energy Gun 3 | . . . . 1 . 5 9 9 4 . . . . . . 4 6 6 3 . Energy Cannon 12 | . . 16 22 24 27 21 15 9 5 7 7 7 7 17 6 12 13 8 3 . Ballistic Gun 5 | . 28 5 . . . . 2 9 16 15 15 15 14 . . . . . . . Ballistic Cannon 1 | . . . . . . . . . . . . . . 4 8 1 . . . . Peak Build Rating 86 | 6 11 16 16 38 53 55 57 51 51 54 51 51 57 74 76 77 73 83 86 42 Average Rating 54 | 4 8 14 16 32 41 54 51 51 45 49 50 50 52 68 70 73 71 70 76 29 On Entrance 44 | . 6 11 16 16 38 53 55 51 51 46 51 51 51 57 74 62 72 71 83 27 Naked Turns . | . . . . . . . . . . . . . . . . . . . . . Heaviest Build 96 | 13 39 48 40 60 82 82 96 78 82 83 79 79 88 90 73 67 64 64 47 2 Greatest Support 43 | 26 26 26 20 28 28 28 28 28 28 28 26 26 26 26 24 24 24 35 43 3 Greatest Overweight (x) 7 | . 1 4 1 2 2 2 3 2 5 3 3 3 3 7 6 2 2 5 2 . Average Overweight (x) 2 | . . 1 1 1 2 2 2 2 2 2 2 3 2 4 5 2 2 3 . . Largest Inventory Capacity 15 | 8 15 15 15 15 15 15 15 15 15 15 15 15 15 15 15 15 15 15 15 5 Average Capacity 14 | 6 9 15 15 15 15 15 15 15 15 15 15 15 15 15 15 15 15 15 14 5 Most Carried 15 | 3 8 15 15 15 15 15 15 15 15 15 15 15 15 15 15 15 15 15 15 5 Average Carried 13 | 1 4 10 14 14 14 15 11 15 13 14 14 14 14 14 14 14 15 14 13 4 Final Capacity 15 | 8 15 15 15 15 15 15 15 15 15 15 15 15 15 15 15 15 15 15 5 5 Final Carried 15 | 2 8 14 15 15 15 15 15 15 15 15 15 15 14 15 14 15 15 15 5 2 Class Distribution -------------------- 34% | Scavenger-Tank 25% | Tank 10% | Commander-Tank 8% | Gunner 5% | Mutant 4% | Scavenger-Skirmisher 4% | Hacker-Mutant Dominant Class ---------------- Mutant | -10/Materials Mutant | -9/Materials Mutant | -9/Mines Gunner | -8/Materials Gunner | -8/Garrison Tank | -8/Materials Commander-Tank | -8/Garrison Commander-Tank | -8/Materials Tank | -8/Garrison Tank | -7/Factory Scavenger-Tank | -7/Lower Caves Scavenger-Tank | -7/Lower Caves Scavenger-Tank | -7/Zion Scavenger-Tank | -7/Deep Caves Scavenger-Tank | -6/Proximity Caves Scavenger-Tank | -6/Factory Scavenger-Skirmisher | -6/Lower Caves Hacker-Mutant | -6/Lower Caves Hacker-Mutant | -6/Data Miner Hacker-Mutant | -5/Proximity Caves Resources | -11 -10 -9 -9 -8 -8 -8 -8 -8 -8 -7 -7 -7 -7 -7 -6 -6 -6 -6 -6 -5 ----------- Run | Yrd Mat Mat Min Mat Gar Mat Gar Mat Gar Fac Low Low Zio Dee Pro Fac Low Low Dat Pro Matter Collected 4208 | 243 109 140 11 150 53 65 155 . 788 266 379 . 10 425 872 284 123 68 30 37 Remotely . | . . . . . . . . . . . . . . . . . . . . . Salvage Created 10865 | . 137 206 . 569 1042 1415 1142 . 1793 595 434 . . 530 1822 491 451 208 30 . Parts 484 | . 10 11 . 17 46 69 58 . 83 22 21 . . 34 57 25 15 12 4 . Haulers Intercepted 6 | . . . . 3 . 2 . . . . . . . . . 1 . . . . Recyclers Shooed . | . . . . . . . . . . . . . . . . . . . . . Parts Field Recycled 9 | . 9 . . . . . . . . . . . . . . . . . . . Retrieved Matter 67 | . 67 . . . . . . . . . . . . . . . . . . . Parts Self-Destructed 96 | . . . . . . . . . . . 21 . . . 44 . 18 13 . . Prevented 33 | . . . . . . . . . . . . . . . 24 . 4 5 . . Kills | -11 -10 -9 -9 -8 -8 -8 -8 -8 -8 -7 -7 -7 -7 -7 -6 -6 -6 -6 -6 -5 ------- Run | Yrd Mat Mat Min Mat Gar Mat Gar Mat Gar Fac Low Low Zio Dee Pro Fac Low Low Dat Pro Combat Hostiles Destroyed 208 | . 5 4 . 9 23 25 30 . 35 7 13 . . 13 25 6 6 7 . . Guns 48 | . 5 . . . . 1 8 . 17 3 8 . . . . . 2 4 . . Cannons 131 | . . 4 . 9 22 22 15 . 11 4 5 . . 12 15 5 4 3 . . AOE 16 | . . . . . . 1 4 . 4 . . . . . 7 . . . . . Classes Destroyed 19 | . 2 2 . 2 3 2 1 . 1 2 . . . 2 1 1 . . . . Worker 3 | . . . . . . . . . . 3 . . . . . . . . . . Builder 4 | . . 1 . . . 2 . . . . . . . . 1 . . . . . Hauler 6 | . . . . 3 . 2 . . . . . . . . . 1 . . . . Recycler 4 | . . . . . . . . . . 2 . . . . 2 . . . . . Operator 1 | . . . . . . 1 . . . . . . . . . . . . . . Drone 1 | . . . . . . . . . . . . . . . 1 . . . . . Watcher 8 | . . . . . . . . . 2 3 . . . . 2 1 . . . . Swarmer 39 | . 3 . . 1 3 . 12 . 3 . 7 . . . . . 3 7 . . Grunt 86 | . 2 3 . 5 13 16 6 . 18 4 3 . . . 12 2 2 . . . Brawler 8 | . . . . . 1 . 1 . 1 . 2 . . . 3 . . . . . Duelist 7 | . . . . 1 . 2 1 . 1 . . . . . 2 . . . . . Sentry 31 | . . 1 . 2 4 5 3 . 8 1 1 . . . 4 1 1 . . . Specialist 2 | . . . . . . . 2 . . . . . . . . . . . . . Hunter 7 | . . . . . . 2 1 . 1 . . . . . 2 1 . . . . Programmer 11 | . . . . . 1 . 4 . 3 2 . . . . . 1 . . . . Heavy 1 | . . . . . . . . . . . . . . . . 1 . . . . Behemoth 2 | . . . . . 1 . . . . . . . . . 1 . . . . . Z-Light 7 | . . . . . . . . . . . . . . 7 . . . . . . Assembled 5 | . . . . . . . . . . . . . . 5 . . . . . . Best Kill Streak 9 | . 5 2 . 4 3 4 9 . 8 6 7 . . 5 8 2 4 3 1 . Combat Bots Only 9 | . 5 1 . 3 3 4 9 . 8 4 7 . . 5 5 2 4 3 . . Max Kills in Single Turn 2 | . 1 2 . 1 2 2 2 . 2 2 2 . . 1 2 1 1 1 1 . Gunslinging 1 | . . . . . . . . . . . 1 . . . . . . . . . Exploded 2 | . . . . . . 1 1 . 1 . . . . . 2 . . . . . Melee . | . . . . . . . . . . . . . . . . . . . . . Uniques/NPCs Destroyed 2 | . . . . . . . . . . . . . . 1 . . . . 1 . Z-Imprinter (-7/Deep Caves) Data Miner (-6/Data Miner) Combat | -11 -10 -9 -9 -8 -8 -8 -8 -8 -8 -7 -7 -7 -7 -7 -6 -6 -6 -6 -6 -5 -------- Run | Yrd Mat Mat Min Mat Gar Mat Gar Mat Gar Fac Low Low Zio Dee Pro Fac Low Low Dat Pro Hostile Shots Fired 1000 | . 28 14 . 54 60 74 133 . 123 61 46 . . 78 134 39 45 56 42 13 Missed 322 | . 9 4 . 18 18 14 34 . 44 24 18 . . 21 44 18 18 19 13 6 Damage Taken 10483 | . 235 115 . 581 842 980 1043 . 861 239 268 . . 1285 1346 237 297 542 1191 421 Core 1780 | . 41 24 . 140 75 87 55 . 53 14 8 . . 209 156 28 44 29 639 178 Absorbed by Shields 230 | . . . . . . . . . 52 86 92 . . . . . . . . . Redirected to Shielding 150 | . . . . . . . . . . . . . . 97 53 . . . . . Ignored by Resistances 1411 | . . . . . . . 219 . 306 85 119 . . 453 41 32 . . 156 . Regen/Repaired (Parts) 598 | . . . . . . . . . . . . . 404 . . 194 . . . . Core Remaining (%) 69 | 100 83 . 94 . . . . . 25 . . . . . 44 . . . . . Volleys Fired 599 | . 21 12 . 32 62 62 71 . 77 37 17 . . 39 103 31 18 17 . . Largest 3 | . 2 2 . 3 3 3 3 . 3 3 3 . . 3 3 3 3 3 . . Hottest 270 | . 40 136 . 195 195 228 228 . 191 146 146 . . 270 237 205 205 205 . . Shots Fired 1466 | . 42 23 . 96 182 164 180 . 180 99 42 . . 109 178 84 54 33 . . Gun 437 | . 42 7 . 4 . 35 63 . 128 66 34 . . . . 23 18 17 . . Cannon 996 | . . 16 . 92 182 129 111 . 45 33 8 . . 109 159 61 36 15 . . Launcher 33 | . . . . . . . 6 . 7 . . . . . 19 . . 1 . . Special . | . . . . . . . . . . . . . . . . . . . . . Kinetic 362 | . 42 7 . . . . 3 . 100 66 34 . . 12 94 4 . . . . Thermal 1004 | . . 16 . 96 182 164 127 . 50 33 8 . . 97 65 80 54 32 . . Explosive . | . . . . . . . . . . . . . . . . . . . . . Electromagnetic 100 | . . . . . . . 50 . 30 . . . . . 19 . . 1 . . Robot Hit Streak 26 | . 7 10 . 10 22 18 12 . 6 10 13 . . 4 26 8 5 2 . . Robot Miss Streak 8 | . 3 2 . 6 2 6 3 . 6 8 8 . . 8 7 4 5 3 . . Penetration Max 1 | . . . . . . . . . 1 . . . . . 1 . . . . . Secondary Targets 5 | . 2 . . . . . . . 2 . 1 . . . . . . . . . Max Gunslinging Chain 1 | . 1 . . . . . . . 1 . 1 . . . . . . . . . Shots Hit Robots 740 | . 26 17 . 54 92 74 68 . 72 65 32 . . 42 115 43 25 14 1 . Core Hits 443 | . 10 6 . 18 36 36 32 . 70 63 52 . . 19 64 18 11 7 1 . Critical Kills 11 | . . . . . 1 1 2 . 1 . . . . 1 3 1 . 1 . . Critical Parts Destroyed 4 | . . 1 . . . . . . 1 . . . . . . 1 . 1 . . Critical Strikes 26 | . . 1 . . 1 2 3 . 2 . . . . 2 11 2 . 2 . . Burn 2 | . . . . . . 1 1 . . . . . . . . . . . . . Meltdown 9 | . . . . . 1 1 2 . . . . . . 1 3 1 . . . . Destroy 6 | . . 1 . . . . . . 2 . . . . . . 1 . 2 . . Blast 9 | . . . . . . . . . . . . . . 1 8 . . . . . Melee Attacks 2 | . . . . . . . . . . . . . . . . . . 1 1 . Impact . | . . . . . . . . . . . . . . . . . . . . . Slashing 2 | . . . . . . . . . . . . . . . . . . 1 1 . Piercing . | . . . . . . . . . . . . . . . . . . . . . Sneak Attacks 1 | . . . . . . . . . . . . . . . . . . . 1 . Combat Hostiles . | . . . . . . . . . . . . . . . . . . . . . Follow-up Attacks . | . . . . . . . . . . . . . . . . . . . . . Damage Inflicted 23208 | . 256 342 . 1633 2639 2664 2277 . 2510 1481 748 . . 1471 4432 1449 792 433 81 . Guns 4312 | . 256 81 . . . 240 461 . 1278 878 489 . . . . 246 215 168 . . Cannons 15855 | . . 261 . 1633 2639 2018 1320 . 572 603 259 . . 1471 3072 1203 577 227 . . Explosions 2960 | . . . . . . 406 496 . 660 . . . . . 1360 . . 38 . . Melee 81 | . . . . . . . . . . . . . . . . . . . 81 . Ramming . | . . . . . . . . . . . . . . . . . . . . . Kinetic 4729 | . 256 81 . . . . 22 . 949 878 489 . . 168 1818 68 . . . . Thermal 15757 | . . 261 . 1633 2639 2664 1632 . 572 603 259 . . 1303 1623 1381 792 395 . . Explosive . | . . . . . . . . . . . . . . . . . . . . . Electromagnetic 2641 | . . . . . . . 623 . 989 . . . . . 991 . . 38 . . Impact . | . . . . . . . . . . . . . . . . . . . . . Slashing 81 | . . . . . . . . . . . . . . . . . . . 81 . Piercing . | . . . . . . . . . . . . . . . . . . . . . Highest Corruption 6 | . . . . . 1 2 4 4 6 . . . . . . 2 2 2 2 2 Average Corruption 2 | . . . . . 1 1 2 4 5 . . . . . . 1 2 2 2 2 Corruption Purged . | . . . . . . . . . . . . . . . . . . . . . Corruption Blocked . | . . . . . . . . . . . . . . . . . . . . . Effects 144 | . . . . . 5 9 34 . 65 . . . . . . 6 9 11 3 2 Message Errors 30 | . . . . . 1 3 9 . 11 . . . . . . 1 . 2 1 2 Matter Fused 34 | . . . . . 1 1 6 . 17 . . . . . . 2 4 3 . . Heat Flow Errors 21 | . . . . . 1 3 7 . 7 . . . . . . . 1 2 . . Energy Discharges 20 | . . . . . 2 1 5 . 7 . . . . . . 1 2 1 1 . Parts Fused 3 | . . . . . . . . . 1 . . . . . . . 1 . 1 . Data Loss (minor) 10 | . . . . . . . 2 . 6 . . . . . . 1 . 1 . . Data Loss (major) 9 | . . . . . . . 3 . 4 . . . . . . . 1 1 . . Misfires 9 | . . . . . . 1 1 . 6 . . . . . . 1 . . . . Alerts 2 | . . . . . . . 1 . . . . . . . . . . 1 . . Weapon Failures 6 | . . . . . . . . . 6 . . . . . . . . . . . Overload Shots . | . . . . . . . . . . . . . . . . . . . . . Overflow Damage 507 | . . . . 44 64 119 92 . 4 8 . . . 93 24 . 59 . . . Projectiles 379 | . . . . 44 64 . 85 . 2 8 . . . 93 24 . 59 . . . Explosions 128 | . . . . . . 119 7 . 2 . . . . . . . . . . . Melee . | . . . . . . . . . . . . . . . . . . . . . Knockbacks 12 | . . . . . . . . . . . . . . 1 11 . . . . . Impact . | . . . . . . . . . . . . . . . . . . . . . Kinetic 10 | . . . . . . . . . . . . . . 1 9 . . . . . Secondary 2 | . . . . . . . . . . . . . . . 2 . . . . . Self-Inflicted Damage 60 | . . . . . . . 14 . 8 . . . . . 38 . . . . . Shots 5 | . . . . . . . 1 . 2 . . . . . 2 . . . . . Rammed . | . . . . . . . . . . . . . . . . . . . . . Targets Rammed . | . . . . . . . . . . . . . . . . . . . . . Kicked . | . . . . . . . . . . . . . . . . . . . . . Crushed . | . . . . . . . . . . . . . . . . . . . . . Highest Temperature 647 | . 12 216 . 85 400 246 370 . 253 99 5 . . 250 517 372 647 222 . . Average Temperature 93 | . 7 74 . 25 60 84 106 . 80 34 5 . . 137 111 80 174 105 . . Received Heat Transfer 3437 | . 99 54 . 261 572 468 333 . 461 118 25 . . 531 366 69 80 . . . Effects 15 | . . . . . 3 . . . . . . . . . 3 . 8 1 . . Shutdowns 1 | . . . . . . . . . . . . . . . . . 1 . . . Energy Bleed 3 | . . . . . . . . . . . . . . . 1 . 1 1 . . Interference 8 | . . . . . 3 . . . . . . . . . 1 . 4 . . . Matter Decay 1 | . . . . . . . . . . . . . . . . . 1 . . . Damage (minor) 2 | . . . . . . . . . . . . . . . 1 . 1 . . . Siege Activations . | . . . . . . . . . . . . . . . . . . . . . Robots Corrupted 7 | . . . . . . . 1 . 3 . . . . . 3 . . . . . Combat Hostiles 6 | . . . . . . . 1 . 3 . . . . . 2 . . . . . Parts Fried 15 | . . . . . . . 1 . 5 . . . . . 7 1 1 . . . Impact Corruptions . | . . . . . . . . . . . . . . . . . . . . . Robots Melted 10 | . . . . . 1 1 2 . . . . . . 1 3 2 . . . . Combat Hostiles 7 | . . . . . 1 1 2 . . . . . . 1 1 1 . . . . Parts Melted 63 | . . 2 . 2 4 14 12 . 1 1 . . . 7 10 5 5 . . . Heat Transferred 22684 | . . 444 . 2257 3552 3728 2334 . 850 900 400 . . 1872 2385 2120 1233 609 . . Parts Sabotaged . | . . . . . . . . . . . . . . . . . . . . . Parts Stolen . | . . . . . . . . . . . . . . . . . . . . . Parts Stripped . | . . . . . . . . . . . . . . . . . . . . . Power Chain Reactions 6 | . . . . . . . 2 . . . . . . . 4 . . . . . Alert | -11 -10 -9 -9 -8 -8 -8 -8 -8 -8 -7 -7 -7 -7 -7 -6 -6 -6 -6 -6 -5 ------- Run | Yrd Mat Mat Min Mat Gar Mat Gar Mat Gar Fac Low Low Zio Dee Pro Fac Low Low Dat Pro Peak Influence 2574 | . 120 196 76 375 1140 1186 2574 1257 2276 1298 . . . . . 526 . . . . Initial 1254 | . . 50 76 29 183 555 770 1254 817 1194 . . . . . 164 . . . . Average 1038 | . 92 144 76 219 699 798 1757 1256 1572 1187 . . . . . 337 . . . . Maximum Alert Level 5 | . . . . 1 4 4 5 4 5 4 . . . . . 2 . . . . Low Security (%) 12 | 100 100 100 100 37 1 . . . . . . . . . . 5 . . . . Level 1 14 | . . . . 62 17 . . . . . . . . . . 72 . . . . Level 2 9 | . . . . . 36 24 . . . . . . . . . 22 . . . . Level 3 16 | . . . . . 38 71 10 . 8 11 . . . . . . . . . . Level 4 24 | . . . . . 5 4 26 100 47 88 . . . . . . . . . . Level 5 23 | . . . . . . . 63 . 43 . . . . . . . . . . . High Security . | . . . . . . . . . . . . . . . . . . . . . Max Security . | . . . . . . . . . . . . . . . . . . . . . Squads Dispatched 30 | . . 2 . 3 . 5 . . . 6 . . . . 1 13 . . . . Investigation 9 | . . 1 . 1 . 2 . . . . . . . . . 5 . . . . Extermination 2 | . . . . . . . . . . 1 . . . . . 1 . . . . Reinforcement 16 | . . 1 . 1 . 3 . . . 4 . . . . 1 6 . . . . Assault 2 | . . . . . . . . . . 1 . . . . . 1 . . . . Garrison 1 | . . . . 1 . . . . . . . . . . . . . . . . Intercept . | . . . . . . . . . . . . . . . . . . . . . Searches Triggered . | . . . . . . . . . . . . . . . . . . . . . Construction Impeded 4 | . . . . . . 1 . . . 2 . . . . 1 . . . . . Haulers Reinforced 2 | . . . . . . . . . . . . . . . . 2 . . . . Active Scanning Responses . | . . . . . . . . . . . . . . . . . . . . . Cargo Convoy Interrupts . | . . . . . . . . . . . . . . . . . . . . . Stealth | -11 -10 -9 -9 -8 -8 -8 -8 -8 -8 -7 -7 -7 -7 -7 -6 -6 -6 -6 -6 -5 --------- Run | Yrd Mat Mat Min Mat Gar Mat Gar Mat Gar Fac Low Low Zio Dee Pro Fac Low Low Dat Pro Distress Signals 13 | . 1 4 . 1 . 2 . . 2 1 . . . . 2 . . . . . Communications Jammed . | . . . . . . . . . . . . . . . . . . . . . Distress Signals . | . . . . . . . . . . . . . . . . . . . . . Times Spotted 310 | . 7 8 . 18 25 34 33 . 47 17 17 . . 18 37 23 11 9 4 2 Peak Tracking Total 7 | . 5 5 . 4 3 6 7 . 7 4 7 . . 5 5 4 4 4 4 2 Tactical Retreats 17 | . . 1 . 1 . . 3 . 5 1 2 . . . 2 . . 2 . . Traps | -11 -10 -9 -9 -8 -8 -8 -8 -8 -8 -7 -7 -7 -7 -7 -6 -6 -6 -6 -6 -5 ------- Run | Yrd Mat Mat Min Mat Gar Mat Gar Mat Gar Fac Low Low Zio Dee Pro Fac Low Low Dat Pro Traps Triggered 24 | . . 4 . . 1 1 6 . 8 . . . . . 2 2 . . . . Indirectly 7 | . . . . . . . . . 5 . . . . . 2 . . . . . Trap Hack Attempts . | . . . . . . . . . . . . . . . . . . . . . Triggered . | . . . . . . . . . . . . . . . . . . . . . Disarmed 6 | . . . . 6 . . . . . . . . . . . . . . . . Reprogrammed . | . . . . . . . . . . . . . . . . . . . . . Reused . | . . . . . . . . . . . . . . . . . . . . . Traps Extracted . | . . . . . . . . . . . . . . . . . . . . . Installed . | . . . . . . . . . . . . . . . . . . . . . Triggered 4 | . . . . . . . . . 1 . . . . . 1 . 1 1 . . Machines | -11 -10 -9 -9 -8 -8 -8 -8 -8 -8 -7 -7 -7 -7 -7 -6 -6 -6 -6 -6 -5 ---------- Run | Yrd Mat Mat Min Mat Gar Mat Gar Mat Gar Fac Low Low Zio Dee Pro Fac Low Low Dat Pro Machines Disabled 44 | . . . . . 10 5 10 . 5 . . . 3 1 3 6 . 1 . . Max in Single Turn 2 | . . . . . 2 2 2 . 1 . . . 1 . 1 2 . 1 . . Garrison Access 2 | . . . . . . . . . . . . . . . . 2 . . . . Garrison Relay 15 | . . . . . 5 . 6 . 4 . . . . . . . . . . . Phase Generator 2 | . . . . . 1 . 1 . . . . . . . . . . . . . Machines Repaired . | . . . . . . . . . . . . . . . . . . . . . Machines Dismantled 3 | . . . . . . . . . . . . . 3 . . . . . . . Machines Sabotaged . | . . . . . . . . . . . . . . . . . . . . . Overloaded Fab Kills . | . . . . . . . . . . . . . . . . . . . . . Hacking | -11 -10 -9 -9 -8 -8 -8 -8 -8 -8 -7 -7 -7 -7 -7 -6 -6 -6 -6 -6 -5 --------- Run | Yrd Mat Mat Min Mat Gar Mat Gar Mat Gar Fac Low Low Zio Dee Pro Fac Low Low Dat Pro Machines Accessed 54 | . 2 2 . 5 3 10 4 2 2 2 . 1 . . 2 11 1 3 4 . Terminals 30 | . 2 2 . 3 3 8 4 . 2 . . . . . . 4 1 1 . . Fabricators 5 | . . . . . . . . . . 2 . . . . 1 2 . . . . Repair Stations 1 | . . . . . . . . . . . . . . . . 1 . . . . Recycling Units 2 | . . . . . . . . . . . . . . . 1 1 . . . . Scanalyzers 4 | . . . . 1 . 1 . 1 . . . . . . . 1 . . . . Garrison Access 5 | . . . . 1 . 1 . 1 . . . . . . . 2 . . . . Total Hacks 159 | . 5 5 . 27 6 31 7 3 4 5 . 1 . . 4 27 1 3 30 . Successful 98 | . 1 1 . 19 1 15 2 3 1 2 . 1 . . 1 17 1 3 30 . Failed 61 | . 4 4 . 8 5 16 5 . 3 3 . . . . 3 10 . . . . Catastrophic 12 | . 1 . . . 3 3 2 . 1 1 . . . . 1 . . . . . Database Lockouts . | . . . . . . . . . . . . . . . . . . . . . Manual 28 | . 5 2 . 4 . 12 . . . 1 . . . . . 4 . . . . Terminals 79 | . 5 5 . 10 6 27 7 . 4 . . . . . . 13 1 1 . . Fabricators 11 | . . . . . . . . . . 5 . . . . 2 4 . . . . Repair Stations 2 | . . . . . . . . . . . . . . . . 2 . . . . Recycling Units 4 | . . . . . . . . . . . . . . . 2 2 . . . . Scanalyzers 23 | . . . . 16 . 3 . 2 . . . . . . . 2 . . . . Garrison Access 7 | . . . . 1 . 1 . 1 . . . . . . . 4 . . . . Terminal Hacks 59 | . 1 1 . 3 1 9 2 . 1 . . 1 . . . 6 1 3 30 . Record 14 | . . . . . . . . . . . . . . . . . 1 2 11 . Part Schematic 12 | . . . . . . . . . . . . . . . . . . . 12 . Robot Schematic 4 | . . . . . . . . . . . . . . . . . . . 4 . Robot Analysis 2 | . 1 . . . . . . . . . . . . . . 1 . . . . Prototype ID Bank 6 | . . . . 1 . 2 . . . . . . . . . . . . 3 . Open Door 5 | . . . . . 1 . 1 . 1 . . 1 . . . . . 1 . . Branch Access Points 1 | . . . . . . 1 . . . . . . . . . . . . . . Terminal Index 1 | . . . . . . 1 . . . . . . . . . . . . . . Scanalyzer Index 1 | . . . . . . . . . . . . . . . . 1 . . . . Alert Level 1 | . . . . . . . . . . . . . . . . 1 . . . . Unreport Threat 1 | . . . . . . . . . . . . . . . . 1 . . . . Locate Traps 4 | . . . . 1 . 2 . . . . . . . . . 1 . . . . Disarm Traps 1 | . . . . 1 . . . . . . . . . . . . . . . . Zone Layout 5 | . . 1 . . . 3 . . . . . . . . . 1 . . . . Patrol Navigation 1 | . . . . . . . 1 . . . . . . . . . . . . . Fabricator Hacks 7 | . . . . . . . . . . 2 . . . . 1 4 . . . . Network Status 2 | . . . . . . . . . . 1 . . . . . 1 . . . . Load Schematic 1 | . . . . . . . . . . . . . . . . 1 . . . . Build 4 | . . . . . . . . . . 1 . . . . 1 2 . . . . Repair Station Hacks 2 | . . . . . . . . . . . . . . . . 2 . . . . Scan Component 1 | . . . . . . . . . . . . . . . . 1 . . . . Repair 1 | . . . . . . . . . . . . . . . . 1 . . . . Recycling Unit Hacks . | . . . . . . . . . . . . . . . . . . . . . Scanalyzer 17 | . . . . 12 . 2 . 2 . . . . . . . 1 . . . . Insert Component 9 | . . . . 6 . 1 . 1 . . . . . . . 1 . . . . Analyze 8 | . . . . 6 . 1 . 1 . . . . . . . . . . . . Garrison Access Hacks 4 | . . . . 1 . 1 . 1 . . . . . . . 1 . . . . Unlock Access 3 | . . . . 1 . 1 . 1 . . . . . . . . . . . . Seal Access 1 | . . . . . . . . . . . . . . . . 1 . . . . Unauthorized Hacks 9 | . . . . 3 . 3 . . . . . . . . . 3 . . . . Terminals 5 | . . . . 2 . 3 . . . . . . . . . . . . . . Botnet 5 | . . . . 2 . 3 . . . . . . . . . . . . . . Fabricators . | . . . . . . . . . . . . . . . . . . . . . Repair Stations . | . . . . . . . . . . . . . . . . . . . . . Recycling Units 2 | . . . . . . . . . . . . . . . . 2 . . . . Recyclers 1 | . . . . . . . . . . . . . . . . 1 . . . . Mask 1 | . . . . . . . . . . . . . . . . 1 . . . . Scanalyzers 2 | . . . . 1 . . . . . . . . . . . 1 . . . . Extract 2 | . . . . 1 . . . . . . . . . . . 1 . . . . Garrison Access . | . . . . . . . . . . . . . . . . . . . . . Data Cores Recovered . | . . . . . . . . . . . . . . . . . . . . . Used . | . . . . . . . . . . . . . . . . . . . . . Hacking Detections 37 | . 2 2 . 5 3 8 3 1 2 2 . . . . 2 6 . 1 . . Full Trace Events 8 | . 1 1 . . . 2 1 . . . . . . . . 3 . . . . Feedback Events 2 | . . . . . . 1 1 . . . . . . . . . . . . . Corruption 2 | . . . . . . 1 1 . . . . . . . . . . . . . Feedback Blocked . | . . . . . . . . . . . . . . . . . . . . . Robot Schematics Acquired 4 | . . . . . . . . . . . . . . . . . . . 4 . Robots Built 5 | . . . . . . . . . . . . . . . 3 2 . . . . Authchips . | . . . . . . . . . . . . . . . . . . . . . Time 148 | . . . . . . . . . . . . . . . 67 81 . . . . Total Robot Build Rating 14 | . . . . . . . . . . . . . . . 12 2 . . . . Part Schematics Acquired 33 | . . . . 16 . 1 . 1 . . . . . . . 3 . . 12 . Parts Built 4 | . . . . . . . . . . 2 . . . . . 2 . . . . Authchips . | . . . . . . . . . . . . . . . . . . . . . Time 126 | . . . . . . . . . . 53 . . . . . 73 . . . . Total Part Build Rating 18 | . . . . . . . . . . 12 . . . . . 6 . . . . Parts Repaired 1 | . . . . . . . . . . . . . . . . 1 . . . . Time 44 | . . . . . . . . . . . . . . . . 44 . . . . Parts Recycled . | . . . . . . . . . . . . . . . . . . . . . Recycled Matter . | . . . . . . . . . . . . . . . . . . . . . Retrieved Matter . | . . . . . . . . . . . . . . . . . . . . . Retrieved Components . | . . . . . . . . . . . . . . . . . . . . . Parts Scanalyzed 8 | . . . . 6 . 1 . 1 . . . . . . . . . . . . Part Schematics Acquired 7 | . . . . 5 . 1 . 1 . . . . . . . . . . . . Parts Damaged . | . . . . . . . . . . . . . . . . . . . . . Bothacking | -11 -10 -9 -9 -8 -8 -8 -8 -8 -8 -7 -7 -7 -7 -7 -6 -6 -6 -6 -6 -5 ------------ Run | Yrd Mat Mat Min Mat Gar Mat Gar Mat Gar Fac Low Low Zio Dee Pro Fac Low Low Dat Pro Used RIF Installer . | . . . . . . . . . . . . . . . . . . . . . Robots Hacked . | . . . . . . . . . . . . . . . . . . . . . Non-combat . | . . . . . . . . . . . . . . . . . . . . . Combat . | . . . . . . . . . . . . . . . . . . . . . Robot Hacks Applied . | . . . . . . . . . . . . . . . . . . . . . Relay Couplers Released 67 | . . . . . 25 . 21 . 16 . . . . . . 5 . . . . Machine Destruction 60 | . . . . . 21 . 21 . 16 . . . . . . 2 . . . . Programmers 7 | . . . . . 4 . . . . . . . . . . 3 . . . . Fabnet Peak Effective % . | . . . . . . . . . . . . . . . . . . . . . Robots Rewired 24 | . . . . . . . 8 . 3 . 2 . . . 11 . . . . . Allies Hacked 1 | . . . . . . . 1 . . . . . . . . . . . . . Hacks Repelled . | . . . . . . . . . . . . . . . . . . . . . Allies | -11 -10 -9 -9 -8 -8 -8 -8 -8 -8 -7 -7 -7 -7 -7 -6 -6 -6 -6 -6 -5 -------- Run | Yrd Mat Mat Min Mat Gar Mat Gar Mat Gar Fac Low Low Zio Dee Pro Fac Low Low Dat Pro Total Allies 37 | . . . 3 . 1 . 8 . 3 . 2 . 4 . 14 2 . . . . Largest Group 9 | . . . 3 3 1 . 8 5 5 . 2 . 4 4 9 9 4 3 . . Highest-Rated Group 274 | . . . 40 40 39 . 223 141 141 . 50 . 110 110 272 274 95 66 . . Highest-Rated Ally 46 | . . . 16 16 39 . 40 40 40 . 30 . 31 31 46 46 46 46 . . Warlord Squad Rendezvous 6 | . . . . . . . . . . . . . . . . 6 . . . . Muscle 2 | . . . . . . . . . . . . . . . . 2 . . . . Geek 1 | . . . . . . . . . . . . . . . . 1 . . . . Ranger 1 | . . . . . . . . . . . . . . . . 1 . . . . Pyro 1 | . . . . . . . . . . . . . . . . 1 . . . . Chimera 1 | . . . . . . . . . . . . . . . . 1 . . . . Total Orders . | . . . . . . . . . . . . . . . . . . . . . Ally Attacks 402 | . . . . 35 29 . 20 . 38 . 4 . . 107 82 63 21 3 . . Total Damage 6025 | . . . . 346 438 . 310 . 871 . 49 . . 1129 949 1577 332 24 . . Kills 51 | . . . . 5 2 . 3 . 5 . . . . 10 7 14 5 . . . Allies Corrupted 1 | . . . . . . . . . . . 1 . . . . . . . . . Allies Melted 1 | . . . . . . . . . 1 . . . . . . . . . . . Intel | -11 -10 -9 -9 -8 -8 -8 -8 -8 -8 -7 -7 -7 -7 -7 -6 -6 -6 -6 -6 -5 ------- Run | Yrd Mat Mat Min Mat Gar Mat Gar Mat Gar Fac Low Low Zio Dee Pro Fac Low Low Dat Pro Robot Analysis Total 147 | . 1 . . . . . . . . . . . . . . 1 . . 145 . Derelict Logs Recovered 9 | . . . 1 . . . . . . . 2 2 1 . 1 . . 2 . . Drone Launches . | . . . . . . . . . . . . . . . . . . . . . Drone Recoveries . | . . . . . . . . . . . . . . . . . . . . . Exploration | -11 -10 -9 -9 -8 -8 -8 -8 -8 -8 -7 -7 -7 -7 -7 -6 -6 -6 -6 -6 -5 ------------- Run | Yrd Mat Mat Min Mat Gar Mat Gar Mat Gar Fac Low Low Zio Dee Pro Fac Low Low Dat Pro Turns Passed 17663 | 44 229 327 384 485 1176 1013 2337 34 2138 813 634 399 1132 1839 1456 1417 754 815 109 128 Spaces Moved 10217 | 38 156 204 361 272 695 593 1320 23 792 268 408 295 840 930 631 1015 557 510 96 213 Core 234 | 9 . . . . . . . . . . . . . . . . . . 12 213 Treads . | . . . . . . . . . . . . . . . . . . . . . Legs 749 | . . . . . . . . . 574 104 . . . 71 . . . . . . Wheels 9098 | 29 156 204 361 272 695 593 1320 23 218 164 408 295 840 859 631 1015 557 454 4 . Hover 136 | . . . . . . . . . . . . . . . . . . 56 80 . Flight . | . . . . . . . . . . . . . . . . . . . . . Fastest Speed 43 | 50 90 95 95 110 130 130 130 130 130 135 120 135 120 120 120 120 120 115 43 50 Average Speed 141 | 80 94 103 95 124 130 130 143 130 229 183 134 135 126 175 165 120 120 143 91 50 Slowest Speed 410 | 90 105 140 95 130 130 130 145 130 330 260 135 135 135 410 180 120 120 165 120 50 Overloaded Moves 10 | . . . . . . . . . . . . . . . . . . . 10 . Propulsion Burnouts . | . . . . . . . . . . . . . . . . . . . . . Robots Hopped . | . . . . . . . . . . . . . . . . . . . . . Cave-ins Triggered . | . . . . . . . . . . . . . . . . . . . . . Exploration Rate (%) 52 | 3 20 17 87 37 88 55 98 6 85 10 62 51 84 76 55 36 64 66 77 26 Regions Visited 20 Branch Regions 10 Pre-discovered Areas 34 | . . . . . . . . . . . 2 2 . . . . . 1 29 . Known Exits Taken 12 | . . . . 1 . 1 . 1 . 1 1 1 1 . 1 1 1 1 1 . Unknown Exits Taken 5 | 1 1 1 1 . . . . . . . . . . 1 . . . . . . Scrap Searched 26 | . . . 1 . . . . . . . 3 2 5 . 1 . 7 6 . 1 Spaces Dug 25 | . . . . 1 . 10 . . 3 3 . . . . . 5 3 . . . Terrain Destroyed 406 | . . . . 25 67 72 90 . 7 13 . . . 56 37 16 17 6 . . Melee . | . . . . . . . . . . . . . . . . . . . . . Projectile 213 | . . . . 25 . 45 2 . 7 13 . . . 56 26 16 17 6 . . AOE 193 | . . . . . 67 27 88 . . . . . . . 11 . . . . . Terrain Rammed . | . . . . . . . . . . . . . . . . . . . . . Walls Destroyed . | . . . . . . . . . . . . . . . . . . . . . Machines Disabled . | . . . . . . . . . . . . . . . . . . . . . Actions | -11 -10 -9 -9 -8 -8 -8 -8 -8 -8 -7 -7 -7 -7 -7 -6 -6 -6 -6 -6 -5 --------- Run | Yrd Mat Mat Min Mat Gar Mat Gar Mat Gar Fac Low Low Zio Dee Pro Fac Low Low Dat Pro Total 12277 | 51 200 296 402 350 835 709 1620 27 966 511 456 296 879 1077 935 1149 600 566 118 234 Wait 715 | . 3 40 39 8 41 45 75 5 17 184 10 . 7 41 88 66 23 11 . 12 Move 10197 | 37 155 203 360 271 694 592 1319 22 791 267 407 294 839 929 630 1014 556 509 95 213 Hop . | . . . . . . . . . . . . . . . . . . . . . Pick Up 137 | 8 12 21 1 10 15 1 8 . 13 5 2 1 . 13 6 4 . 10 4 3 Fast Attach 44 | . . . . 5 1 2 . . 2 6 3 . . 12 2 8 . 1 2 . Attach 79 | 6 1 13 . 4 2 . 7 . 9 . . . 1 11 6 1 . 7 5 6 Detach 5 | . . . . . . . . . . . . . . 3 1 . . 1 . . Swap 79 | . 3 4 1 5 5 2 4 . 8 4 1 . 4 10 4 17 3 2 2 . Drop 116 | . 5 3 1 15 15 5 1 . 8 8 5 1 1 19 5 8 . 7 9 . Fire 599 | . 21 12 . 32 62 62 71 . 77 37 17 . . 39 103 31 18 17 . . Melee 2 | . . . . . . . . . . . . . . . . . . 1 1 . Ram . | . . . . . . . . . . . . . . . . . . . . . Kick . | . . . . . . . . . . . . . . . . . . . . . Crush . | . . . . . . . . . . . . . . . . . . . . . Escape Stasis 58 | . . . . . . . 40 . 18 . . . . . . . . . . . Rewire 219 | . . . . . . . 95 . 23 . 11 . . . 90 . . . . . Trap . | . . . . . . . . . . . . . . . . . . . . . Miscellaneous 27 | . . . . . . . . . . . . . 27 . . . . . . . Route ------- -11/Scrapyard -10/Materials (discovered 2 exits: *Mat / [*Min]) -9/Materials -9/Mines (discovered 3 exits: *Mat x2 / *Zio) -8/Materials (discovered 2 exits: Fac / Gar) -8/Garrison (discovered 3 exits: *Mat x3) -8/Materials (discovered 2 exits: *Fac / Gar) -8/Garrison (discovered 3 exits: *Mat x3) -8/Materials -8/Garrison (discovered 3 exits: *Fac x3) -7/Factory -7/Lower Caves -7/Lower Caves (discovered 2 exits: *Fac / *Zio) -7/Zion (discovered 2 exits: *Dee / *Pro) -7/Deep Caves -6/Proximity Caves -6/Factory (discovered 2 exits: Fac / *Low) -6/Lower Caves -6/Lower Caves -6/Data Miner -5/Proximity Caves History --------- Turn | Location | Event 27 | -11/Scrapyard | Discovered new exit (range 15) 45 | -11/Scrapyard | Entered Materials 213 | -10/Materials | Discovered new exit (range 15) 251 | -10/Materials | Discovered new exit (range 16) 274 | -10/Materials | Entered another Materials area 274 | -9/Materials | Evolved 2 slots: Utility x2 314 | -9/Materials | Build established: Mutant 363 | -9/Materials | Discovered new exit (range 12) 601 | -9/Materials | Entered Mines 640 | -9/Mines | Met a Derelict bent on vengeance 688 | -9/Mines | Learned location of 1 exit from Materials 707 | -9/Mines | Discovered new exit (range 14) 767 | -9/Mines | A Derelict revealed a hidden shortcut to a safe place 802 | -9/Mines | Discovered new exit (range 6) 810 | -9/Mines | Assisted by bots powering up and referring to "LRC-V3" 985 | -9/Mines | Entered Materials 985 | -8/Materials | Accompanied by 3 allies 985 | -8/Materials | Evolved 2 slots: Utility x1, Weapon x1 986 | -8/Materials | Identified exit to Factory 1349 | -8/Materials | Build established: Gunner 1376 | -8/Materials | Garrison activated, responded to threat 1468 | -8/Materials | Identified exit to Garrison 1470 | -8/Materials | Entered Garrison 1526 | -8/Garrison | Triggered checkpoint 1555 | -8/Garrison | Garrison Relay disabled 1703 | -8/Garrison | Triggered checkpoint 1768 | -8/Garrison | Garrison Relay disabled 1831 | -8/Garrison | Discovered new exit (range 15) 1938 | -8/Garrison | Triggered checkpoint 2006 | -8/Garrison | Discovered new exit (range 12) 2092 | -8/Garrison | Triggered checkpoint 2136 | -8/Garrison | Garrison Relay disabled 2148 | -8/Garrison | Triggered checkpoint 2176 | -8/Garrison | Rescued a captive Derelict 2244 | -8/Garrison | Triggered checkpoint 2353 | -8/Garrison | Phase Generator disabled 2366 | -8/Garrison | Discovered new exit (range 13) 2381 | -8/Garrison | Garrison Relay disabled 2438 | -8/Garrison | Triggered checkpoint 2491 | -8/Garrison | Spotted B-75 Beast 2524 | -8/Garrison | Destroyed B-75 Beast 2548 | -8/Garrison | Lost 3 parts (1n2u) 2583 | -8/Garrison | Garrison Relay disabled 2646 | -8/Garrison | Entered Materials 2773 | -8/Materials | Build established: Tank 2929 | -8/Materials | Discovered exit to Factory (range 4) 3422 | -8/Materials | Core integrity fell below 50% 3658 | -8/Materials | Identified exit to Garrison 3659 | -8/Materials | Entered Garrison 3719 | -8/Garrison | Triggered checkpoint 3727 | -8/Garrison | Garrison Relay disabled 3815 | -8/Garrison | Triggered checkpoint 3937 | -8/Garrison | Destroyed 9 combat bots 3942 | -8/Garrison | Lost 5 parts (1p3u1w) 3989 | -8/Garrison | Discovered new exit (range 13) 4023 | -8/Garrison | Triggered checkpoint 4048 | -8/Garrison | Garrison Relay disabled 4405 | -8/Garrison | Triggered checkpoint 4713 | -8/Garrison | Discovered new exit (range 10) 4855 | -8/Garrison | Build established: Commander-Tank 4889 | -8/Garrison | Triggered checkpoint 4984 | -8/Garrison | Discovered new exit (range 11) 5058 | -8/Garrison | Triggered checkpoint 5083 | -8/Garrison | Garrison Relay disabled 5145 | -8/Garrison | Phase Generator disabled 5148 | -8/Garrison | Lost 3 allies 5352 | -8/Garrison | Garrison Relay disabled 5365 | -8/Garrison | Garrison Relay disabled 5996 | -8/Garrison | Entered Materials 5996 | -8/Materials | Accompanied by 5 allies 6024 | -8/Materials | Identified exit to Garrison 6030 | -8/Materials | Entered Garrison 6030 | -8/Garrison | Accompanied by 5 allies 6080 | -8/Garrison | Triggered checkpoint 6128 | -8/Garrison | Garrison Relay disabled 6172 | -8/Garrison | Lost 5 allies 6416 | -8/Garrison | Triggered checkpoint 6473 | -8/Garrison | Destroyed 8 combat bots 6481 | -8/Garrison | Lost 3 parts (1n1u1w) 6571 | -8/Garrison | Build established: Scavenger-Tank 6729 | -8/Garrison | Discovered exit to Factory (range 9) 6818 | -8/Garrison | Triggered checkpoint 6841 | -8/Garrison | Garrison Relay disabled 7072 | -8/Garrison | Triggered checkpoint 7483 | -8/Garrison | Build established: Tank 7609 | -8/Garrison | Discovered exit to Factory (range 10) 7734 | -8/Garrison | Triggered checkpoint 7757 | -8/Garrison | Garrison Relay disabled 7911 | -8/Garrison | Discovered exit to Factory (range 10) 7998 | -8/Garrison | Triggered checkpoint 8036 | -8/Garrison | Garrison Relay disabled 8168 | -8/Garrison | Entered Factory 8168 | -7/Factory | Evolved 2 slots: Utility x2 8773 | -7/Factory | Fabricated Imp. Coolant Injector (x2) 8857 | -7/Factory | Discovered new exit (range 14) 8968 | -7/Factory | First assault squad dispatched 8978 | -7/Factory | Identified exit to Lower Caves 8981 | -7/Factory | Entered Lower Caves 9019 | -7/Lower Caves | Met a Warlord Commander 9020 | -7/Lower Caves | Learned location of Warlord (-5) 9021 | -7/Lower Caves | Warlord Commander delivered Encrypted Comm Array 9026 | -7/Lower Caves | Found Encrypted Comm Array 9049 | -7/Lower Caves | Learned 8 Factory zone layouts 9117 | -7/Lower Caves | Encountered a Warlord checkpoint 9194 | -7/Lower Caves | Attracted the attention of an 0b10 outpost 9220 | -7/Lower Caves | Learned location of Extension (-4) 9222 | -7/Lower Caves | Destroyed 7 combat bots 9235 | -7/Lower Caves | Build established: Scavenger-Tank 9446 | -7/Lower Caves | Found DCF Scrap (13 items) 9446 | -7/Lower Caves | Discovered new exit (range 6) 9456 | -7/Lower Caves | Identified exit to Lower Caves 9615 | -7/Lower Caves | Entered another Lower Caves area 9641 | -7/Lower Caves | Discovered new exit (range 14) 9657 | -7/Lower Caves | Identified exit to Factory 9675 | -7/Lower Caves | Learned location of Zion (-7) 9906 | -7/Lower Caves | Discovered new exit (range 8) 9914 | -7/Lower Caves | Identified exit to Zion 10014 | -7/Lower Caves | Entered Zion 10059 | -7/Zion | Visited the Megawrench Repair Shop 10059 | -7/Zion | Megawrench repaired 12 parts 10179 | -7/Zion | Discovered new exit (range 13) 10218 | -7/Zion | Identified exit to Proximity Caves 10402 | -7/Zion | Gained Derelict followers 10670 | -7/Zion | Met Imprinter 10785 | -7/Zion | Received a visual enhancement algorithm 10813 | -7/Zion | Learned Factory emergency access door positions 11130 | -7/Zion | Discovered new exit (range 3) 11130 | -7/Zion | Saw the warning signs outside the Deep Caves entrance 11132 | -7/Zion | Identified exit to Deep Caves 11146 | -7/Zion | Entered Deep Caves 11146 | -7/Deep Caves | Accompanied by 4 allies 11376 | -7/Deep Caves | Attacked by Z-Imprinter 11393 | -7/Deep Caves | Destroyed Z-Imprinter 11452 | -7/Deep Caves | Found Prototype Protection 11452 | -7/Deep Caves | Identified Zio. Weapon Casing 11567 | -7/Deep Caves | Z-Facility disabled 11681 | -7/Deep Caves | Lost 3 parts (1p1n1u) 11775 | -7/Deep Caves | Found Prototype Protection 11775 | -7/Deep Caves | Identified Zio. Heavy Carapace 11815 | -7/Deep Caves | Found Zio. Weapon Casing 12212 | -7/Deep Caves | Build established: Tank 12526 | -7/Deep Caves | Build established: Scavenger-Tank 12846 | -7/Deep Caves | Discovered new exit (range 6) 12985 | -7/Deep Caves | Entered Proximity Caves 12985 | -6/Proximity Caves | Accompanied by 1 ally 13037 | -6/Proximity Caves | Learned 4 Factory zone layouts 13450 | -6/Proximity Caves | Snuck into a huge 0b10 base via the rear entrance 13700 | -6/Proximity Caves | Lost 5 allies 13742 | -6/Proximity Caves | Discovered exit to Factory (range 16) 13896 | -6/Proximity Caves | Spotted B-75 Beast 13918 | -6/Proximity Caves | Core integrity fell below 50% 13922 | -6/Proximity Caves | Destroyed B-75 Beast 14130 | -6/Proximity Caves | Fabricated B-48 Gladiator (x3) 14441 | -6/Proximity Caves | Entered Factory 14441 | -6/Factory | Accompanied by 9 allies 14441 | -6/Factory | Evolved 2 slots: Propulsion x1, Utility x1 14442 | -6/Factory | Identified exit to Factory 14482 | -6/Factory | Joined by Warlord Geek squad 14534 | -6/Factory | Build established: Commander-Gunner 14779 | -6/Factory | Joined by Warlord Muscle squad 14841 | -6/Factory | Spotted B-75 Beast 14943 | -6/Factory | Joined by Warlord Pyro squad 15072 | -6/Factory | Fabricated Adv. Weight Redist. System? 15124 | -6/Factory | Joined by Warlord Chimera squad 15154 | -6/Factory | Found Powered Armor 15234 | -6/Factory | Joined by Warlord Muscle squad 15331 | -6/Factory | Build established: Scavenger-Tank 15399 | -6/Factory | Repaired Imp. Deuterium Engine 15412 | -6/Factory | Fabricated T-07 Excavator? 15528 | -6/Factory | Joined by Warlord Ranger squad 15728 | -6/Factory | Lost 4 allies 15753 | -6/Factory | Discovered new exit (range 8) 15775 | -6/Factory | Identified exit to Lower Caves 15858 | -6/Factory | Entered Lower Caves 15858 | -6/Lower Caves | Accompanied by 4 allies 16029 | -6/Lower Caves | Attracted the attention of an 0b10 checkpoint 16165 | -6/Lower Caves | Build established: Scavenger-Skirmisher 16560 | -6/Lower Caves | Attacked by a delusional Derelict stockpiling parts 16590 | -6/Lower Caves | Spotted B-75 Beast 16597 | -6/Lower Caves | Discovered new exit (range 7) 16603 | -6/Lower Caves | Identified exit to Lower Caves 16612 | -6/Lower Caves | Entered another Lower Caves area 16612 | -6/Lower Caves | Accompanied by 3 allies 17007 | -6/Lower Caves | Lost 4 parts (2p1u1w) 17221 | -6/Lower Caves | Build established: Hacker-Mutant 17270 | -6/Lower Caves | Found Alien Artifact 17304 | -6/Lower Caves | Discovered new exit (range 7) 17310 | -6/Lower Caves | Identified exit to Data Miner 17320 | -6/Lower Caves | Learned Factory garrison access intel 17427 | -6/Lower Caves | Entered Data Miner 17427 | -6/Data Miner | Discovered new exit (range 6) 17432 | -6/Data Miner | Identified exit to Proximity Caves 17449 | -6/Data Miner | Met Data Miner 17470 | -6/Data Miner | Learned location of Section 7 (-3) 17470 | -6/Data Miner | Acquired the access code to Warlord's prototype stash 17488 | -6/Data Miner | Received God Mode back door access code from Data Miner 17498 | -6/Data Miner | Destroyed Data Miner 17500 | -6/Data Miner | Interfaced with the Data Conduit 17501 | -6/Data Miner | Found Prototype Hackware 17501 | -6/Data Miner | Identified System Mapper 17506 | -6/Data Miner | Found Prototype Hackware 17507 | -6/Data Miner | Found Prototype Hackware 17509 | -6/Data Miner | Found Prototype Hackware 17509 | -6/Data Miner | Identified Quantum Router 17525 | -6/Data Miner | Identified Ghost Barrier 17526 | -6/Data Miner | Identified Deep Network Scanner 17531 | -6/Data Miner | Core integrity fell below 50% 17535 | -6/Data Miner | Core integrity fell below 20% 17536 | -6/Data Miner | Entered Proximity Caves 17565 | -5/Proximity Caves | Lost 14 parts (1p6n6u1w) 17661 | -5/Proximity Caves | Identified Dimensional Node Initializer 17661 | -5/Proximity Caves | Initialized slip node 17664 | -5/Proximity Caves | Core destroyed Last Messages --------------- 17642_ Found Mass Driver. 17642_ Found Adv. Targeting Computer. 17642_ Found Disruptor Cannon. 17642_ Found Mak. Salvage Targeting Computer. 17642_ Found 46 Matter. 17643_ Acquired 27 matter. 17644_ Acquired 10 matter. 17644_ Acquired Adv. Targeting Computer. 17647_ Acquired Mass Driver. 17649_ Acquired Disruptor Cannon. 17661_ Slug penetrates H-66 Slayer. 17661_ Deep Network Scanner destroyed. 17661_ Penetrated by Slug. 17661_ Identified Dimensional Node Initializer. 17661_ Initializer activates and latches into the ground. 17664_ Slug penetrates Dimensional Slip Node. 17664_ Dimensional Slip Node implodes. 17664_ Mass Driver destroyed. 17664_ Disruptor Cannon destroyed. Map ----- +----------------------------------------------------+ | """ ##?## ## #???# ## | | """ ### ### #???# ### # | | " # ## ###?# #???# #?## ## | | """ ## ###??## ##??# #??### ##? | | """ ### #####?## ##?# #????######?? | | """ #?## ##??# ## ### ##??##???????? | | #??#### ##???# ###???# #####??? | | #?????## #????# #?????# ##?? | | ######??????####????## ##????# $#?? | | ####????????????## ### ####### #?? | | #??????????### ##?####### ## #?? | | #??####???## ####?????## #?? | | #?# ##### h #??????#### #?? | | ### ##?####????##### # #?? | | ## ## h ### #????????### | | ?## #### #???????????? | | ??### #???## #???????????? ## | | ##### ####?#### ##??????????? #? | | # #???## ###????????? | | # #???# ##???????? | | # ### # #???# #???????? ##### | | # #?# ## ##???# ## ## #????????##???? | | # ### #?###???## ### ##? #?????????????? | | # ##???????#% ### #?? #?????????????? | | #???????# ! #### ## #???????????????? | | #??????# #### @## #???????????????? | | # # #?????# #?# #? #???????????????? | | ## # # #???##### ## #?# ##???????????????? | | ??# #??????###?## ##??###????????????????? | | ???# # # #???????????####??????????????????????? | | ????### ##??????????????????????????????????????? | | ???????###???????????????????????????????????????? | | ?????????????????????????????????????????????????? | | ?????????????????????????????????????????????????? | | ?????????????????????????????????????????????????? | | ?????????????????????????????????????????????????? | | ?????????????????????????????????????????????????? | | ?????????????????????????????????????????????????? | | ?????????????????????????????????????????????????? | | ?????????????????????????????????????????????????? | | ?????????????????????????????????????????????????? | | ?????????????????????????????????????????????????? | | ?????????????????????????????????????????????????? | | ?????????????????????????????????????????????????? | | ?????????????????????????????????????????????????? | | ?????????????????????????????????????????????????? | | ?????????????????????????????????????????????????? | | ?????????????????????????????????????????????????? | | ?????????????????????????????????????????????????? | | ?????????????????????????????????????????????????? | +----------------------------------------------------+ Best States ------------- Heat Dissipation 87 Coolant Potential 80 Energy Generation 27 Energy Capacity 890 Matter Stores 300 Matter Capacity 300 Sight Range 16 Robot Scan Range 16 Terrain Scan Density 10 Armor Coverage 1200 Resistance: KI 30 Resistance: TH 25 Weapon Shielding 100 Weapon Cycling 20 Evasion (%) 50 Targeting Accuracy 8 Core Analysis 6 Offensive Hacking 57 Defensive Hacking 45 Item Schematics ----------------- Arm. Huge Wheel | -8/Materials | Scanalyzed Heat Sink | -8/Materials | Scanalyzed Com. Wheel | -8/Materials | Scanalyzed Cld. Ion Engine | -8/Materials | Scanalyzed Hrd. Light Armor Plating | -8/Materials | Scanalyzed Adv. Weight Redist. System | -8/Materials | Extracted Visual Processing Unit | -8/Materials | Extracted Adv. Beam Cannon | -8/Materials | Extracted Adv. Targeting Computer | -8/Materials | Extracted Mace | -8/Materials | Extracted Imp. Sensor Array | -8/Materials | Extracted Welding Torch | -8/Materials | Extracted Disposable Heat Sink | -8/Materials | Extracted Hacking Suite | -8/Materials | Extracted Recoil Stabilizer | -8/Materials | Extracted Spread Laser | -8/Materials | Extracted Tesla Rifle | -8/Materials | Scanalyzed Imp. Coolant Injector | -8/Materials | Scanalyzed Hvy. Machine Gun | -6/Factory | Extracted Shield Generator | -6/Factory | Extracted Launcher Loader | -6/Factory | Extracted Combat Drone Bay | -6/Data Miner | Free Lgt. Regenerative Plating | -6/Data Miner | Free Enh. Armored Leg | -6/Data Miner | Free Prc. Energy Filter | -6/Data Miner | Free Thunder Hammer | -6/Data Miner | Free Impulse Thruster | -6/Data Miner | Free Imp. System Guard | -6/Data Miner | Free HERF Cannon | -6/Data Miner | Free Imp. Weapon Cycler | -6/Data Miner | Free Centrium Wheel | -6/Data Miner | Free Com. HERF Cannon | -6/Data Miner | Free Quantum Rifle | -6/Data Miner | Free Robot Schematics ------------------ A-15 Conveyor | -6/Data Miner | Free I-47 Archangel | -6/Data Miner | Free G-50 Soldier | -6/Data Miner | Free R-10 Processor | -6/Data Miner | Free Fabricated ------------ Imp. Coolant Injector | x2 | -7/Factory | Preloaded B-48 Gladiator | x3 | -6/Proximity Caves | Preloaded Adv. Weight Redist. System | x2 | -6/Factory T-07 Excavator | x2 | -6/Factory | Preloaded Alien Tech Used ----------------- Dimensional Node Initializer Achievements -------------- None Challenges ------------ None Game ------ Seed ImpactLightningBooster Manual? 0 Play Time 03:06:47 Cumulative 228.1 hours Start 2024.10.04 @ 05:08:24 End 2024.10.07 @ 23:01:50 Sessions 5 Manual Loads 0 Difficulty Rogue Special Mode None Game No. 185 Rogue 176 Adventurer 9 Explorer 0 Win Type - Total 1 Types 1/0/0/0/0/0/0/0/0 Lore% 78 Gallery% 73 Achievement% 60 Wizard Run 0 Options --------- Layout 1 ASCII 0 Keyboard 0 Movement Numpad Keybinds 0 Fullscreen 1 Font 24/Smallcaps Map View 50x35 Zoom Use 0% Tactical HUD 1 Map Filters NONE Filters NONE Steam 1 RUN: 2bd7d6b7-96bd-48d6-a3af-257af21a58a9